[Event "Ramat Gan Masters-A Winter 2023"]
[Site "Ramat Gan/ISR"]
[Date "2023.02.13"]
[Round "4.2"]
[White "Gavriely, Or"]
[Black "Aroeta, Benny"]
[Result "1-0"]
[Annotator "TA"]
[ECO "D07"]
[WhiteElo "1991"]
[BlackElo "1978"]
[PlyCount "117"]
[EventDate "2023.01.17"]
[EventType "swiss"]
[SourceTitle "playchess.com"]
[Source "ChessBase"]
[SourceQuality "1"]
[TimeControl "5400+30"]

{[%evp 9,117,31,70,66,65,77,108,113,104,62,150,161,142,137,131,125,125,120,130,131,128,133,122,133,112,112,120,-7,-7,0,0,-148,85,20,102,110,118,118,116,120,115,96,308,310,300,280,298,282,372,418,396,352,534,431,426,421,439,283,308,293,447,304,458,393,546,546,1096,1023,6448,6029,29969,29970,29969,29970,29971,29972,29972,29966,29973,29974,29974,29975,29975,29976,29977,29978,29978,29977,29977,29978,29977,29978,29978,29979,29980,29981,29980,29980,29980,29981,29987,29988,29988,29984,29984,29985,29985,29985,29985,29986]} 1. d4 {[%emt 0:00:02]} d5 {[%emt 0:14:40]} 2. c4 {[%emt 0:00:05]} Nc6 {[%emt 0:00:15]} 3. Nf3 {[%emt 0:00:22]} Bg4 {[%emt 0:00:04]} 4. Bf4 {[%emt 1:32:01]} Bxf3 {[%emt 0:21:12]} 5. gxf3 {[%emt 0:00:00]} e5 {[%emt 0:01:35] [#]} 6. Bxe5 $146 {[%emt 0:00:00] D07: Queen's Gambit: Chigorin Defence.} ({Predecessor:} 6. dxe5 Bb4+ 7. Nd2 dxc4 8. Qc2 Qd4 9. e3 Qxd2+ 10. Qxd2 Rd8 11. O-O-O Bxd2+ 12. Rxd2 Rxd2 13. Kxd2 {½-½ Maletin,P (2621)-Pasiev,R (2282) Moscow op-E 2011 (8.46)}) 6... Nxe5 {[%emt 0:18:23]} 7. dxe5 {[%emt 0:00:00]} d4 {[%emt 0:06:37]} 8. Nd2 {[%emt 0:00:00] White is better.} Qg5 {[%emt 0:05:07]} 9. Qb3 {[%emt 0:00:00]} O-O-O {[%emt 0:03:59] [#]} (9... Rb8 $1 $14) 10. f4 $1 {[%emt 0:00:00][%mdl 512]} Qxf4 {[%emt 0:01:21]} (10... Qh6 11. Bg2) 11. Bh3+ {[%emt 0:00:00]} (11. Bg2 $6 c6 $14) 11... f5 {[%emt 0:01:54]} 12. exf6+ {[%emt 0:00:00]} Kb8 {[%emt 0:00:07]} 13. Bg2 {[%emt 0:00:00][%csl Gg2][%cal Rb3b7]} c6 {[%emt 0:00:39]} 14. fxg7 {[%emt 0:00:00]} Bxg7 {[%emt 0:00:10]} 15. Bxc6 {[%emt 0:00:00][%csl Gc6][%cal Rb3b7]} Qc7 {[%emt 0:00:36]} 16. Bf3 {[%emt 0:00:00]} Ne7 {[%emt 0:03:30] [#]} 17. c5 $1 {[%emt 0:00:00]} Nc6 {[%emt 0:04:45]} (17... d3 18. e3) 18. Nc4 {[%emt 0:00:00] [#]} (18. Rg1 $16 {Strongly threatening Bxc6.} d3 19. e3 (19. exd3 Nd4 $16) (19. Bxc6 Qxc6 20. exd3 Qxc5 $14)) 18... d3 $1 $11 {[%emt 0:06:01] ...Rhf8 would be deadly.} 19. e3 {[%emt 0:01:27]} (19. exd3 Nd4 20. Qd1 Qf4 $19) (19. O-O-O dxe2) 19... Rhf8 $1 {[%emt 0:03:17]} 20. Be4 {[%emt 0:01:27] [#]} (20. Nd2 $1 $11 {was the only way to keep the balance.}) 20... d2+ $2 {[%emt 0:05:01] [#]} 21. Ke2 $1 $16 {[%emt 0:01:16]} (21. Nxd2 $6 Rxf2 22. Kxf2 Rxd2+ 23. Ke1 Qa5 $11) 21... Rfe8 {[%emt 0:00:57]} (21... Qf7 $2 22. f3 (22. Bxc6 $2 d1=B+ 23. Raxd1 Qxf2#) 22... Ka8 23. Rad1 $18 (23. Nxd2 Qh5 $18)) (21... Bd4 $1 $11 {keeps the balance.}) 22. f3 {[%emt 0:00:40]} (22. Bxh7 $2 Nd4+ 23. Kd1 Nxb3 $19) (22. Nd6 Re5 $14) 22... Re7 {[%emt 0:00:30]} 23. Rad1 {[%emt 0:01:09][%cal Ba1d1,Bd1d2,Bd2d6][%mdl 32] Hoping for Qb5.} (23. Bxh7 $2 Nd4+ 24. Kd1 Nxb3 $19) 23... Na5 {[%emt 0:00:31]} 24. Nxa5 {[%emt 0:02:04]} Qxa5 {[%emt 0:00:04]} 25. Qc4 {[%emt 0:01:01]} Rde8 $2 {[%emt 0:01:14] A mistake that costs the game.} (25... Bxb2 $16 {was necessary.} 26. Rhg1 Qc7) 26. Rxd2 $18 {[%emt 0:00:27]} Qc7 {[%emt 0:00:04]} 27. b4 {[%emt 0:00:54]} (27. Bxh7 Rxe3+ 28. Kd1 Rxf3 $14) 27... Bh6 {[%emt 0:00:36]} 28. Rd6 {[%emt 0:00:30]} Bg7 {[%emt 0:00:32]} 29. Rhd1 {[%emt 0:00:04]} (29. Bxh7 Bf8 30. Be4 Rxe4 31. fxe4 Bxd6 $17) 29... Be5 {[%emt 0:00:10]} 30. Qd5 {[%emt 0:00:42][%cal Ob4b5] aiming for b5!} Bxh2 {[%emt 0:01:03]} (30... Qc8 $142 31. Rd7 Rxd7 32. Qxd7 Bc7 33. Bxh7 Qxd7 34. Rxd7 Re5) 31. Rd7 {[%emt 0:00:35]} Rxd7 {[%emt 0:00:24]} 32. Qxd7 {[%emt 0:00:01]} Re7 {[%emt 0:00:39]} 33. Qxc7+ {[%emt 0:01:11]} Bxc7 {[%emt 0:00:30][%mdl 4096] Endgame KRB-KRB} 34. Rh1 {[%emt 0:00:01]} a5 {[%emt 0:00:29]} (34... Rd7 $142 35. f4 b6 36. Bxh7 a5 37. cxb6 Bxb6) 35. a3 {[%emt 0:00:10]} ({Less strong is} 35. Bxh7 axb4 36. Kd3 Rd7+ 37. Kc4 Rd2 $18) 35... Be5 {[%emt 0:00:24]} (35... axb4 $142 36. axb4 (36. Bxh7 bxa3 37. Bg8 Bf4 $11) 36... b6 37. Bxh7 bxc5 38. bxc5 Re5) 36. Rxh7 {[%emt 0:00:09]} (36. bxa5 Ka7 37. a4 Bc3 $18) (36. Bxh7 Bb2 37. bxa5 Bxa3 $18) 36... Rxh7 {[%emt 0:00:24]} 37. Bxh7 {[%emt 0:00:02] KB-KB} Bb2 {[%emt 0:00:01]} 38. bxa5 {[%emt 0:02:11]} Bxa3 {[%emt 0:00:10] [#]} 39. c6 $1 {[%emt 0:00:13]} Bb4 {[%emt 0:00:44]} (39... bxc6 40. f4) 40. cxb7 {[%emt 0:00:27] White mates.} Kxb7 {[%emt 0:00:11]} 41. e4 {[%emt 0:00:27][%cal Be3e4,Be4e5][%mdl 32]} ({Not} 41. Be4+ Ka7 $14) 41... Bxa5 {[%emt 0:00:06]} 42. Ke3 {[%emt 0:01:00]} Kc7 {[%emt 0:00:09]} 43. Kd4 {[%emt 0:00:19]} Kd6 {[%emt 0:00:34]} 44. e5+ {[%emt 0:00:27]} Ke6 {[%emt 0:00:08]} 45. f4 {[%emt 0:00:26][%cal Bf3f4,Bf4f5,Bf5f6][%mdl 32]} Bb6+ {[%emt 0:02:39]} 46. Ke4 {[%emt 0:00:11]} Bd8 {[%emt 0:00:20]} 47. Bg6 {[%emt 0:00:07]} Bh4 {[%emt 0:00:12]} 48. Bh5 {[%emt 0:00:50]} Ke7 {[%emt 0:00:25]} 49. f5 {[%emt 0:01:07]} Bg5 {[%emt 0:00:42]} 50. Bg6 {[%emt 0:00:02]} Bh4 {[%emt 0:00:16]} 51. Kf4 {[%emt 0:00:15]} Be1 {[%emt 0:00:18]} 52. f6+ {[%emt 0:00:20]} Ke6 {[%emt 0:00:41]} 53. Bh7 {[%emt 0:00:16]} Bd2+ {[%emt 0:00:51]} 54. Ke4 {[%emt 0:00:01]} Bg5 {[%emt 0:00:17]} 55. Bg8+ {[%emt 0:00:05]} Kd7 {[%emt 0:00:17]} 56. Bf7 {[%emt 0:00:01]} Kd8 {[%emt 0:00:22]} 57. Kf5 {[%emt 0:00:13]} Bd2 {[%emt 0:00:20]} 58. e6 {[%emt 0:00:05]} Bb4 {[%emt 0:00:09]} 59. Bh5 {[%emt 0:00:06] Artfully played by Gavriely.   Weighted Error Value: White=0.25 (precise) /Black=0.54} 1-0

[Event "Ramat Gan Masters-A Winter 2023"]
[Site "Ramat Gan/ISR"]
[Date "2023.02.13"]
[Round "4.3"]
[White "Sherman, Reem"]
[Black "Uritsky, Yonathan"]
[Result "0-1"]
[Annotator "TA"]
[ECO "B13"]
[WhiteElo "2249"]
[BlackElo "2047"]
[PlyCount "92"]
[EventDate "2023.01.17"]
[EventType "swiss"]
[SourceTitle "playchess.com"]
[Source "ChessBase"]
[SourceQuality "1"]
[TimeControl "5400+30"]

{[%evp 9,92,0,3,2,-2,5,40,34,36,21,32,7,8,8,22,18,25,16,17,17,22,0,0,-14,-4,-21,18,-22,-23,-45,-33,-35,-40,-35,-35,-49,-43,-31,-41,-61,-34,-51,-15,-83,-70,-64,-68,-113,-101,-122,-84,-181,-177,-192,-122,-194,-170,-624,-635,-620,-576,-482,-428,-1145,-1261,-1483,-1465,-1693,-1802,-1746,-1723,-1654,-1684,-1190,-872,-848,-848,-4678,-3620,-2052,-1983,-2097,-1937,-29990,-29991]} 1. e4 {[%emt 0:01:01]} c6 {[%emt 0:00:07]} 2. d4 {[%emt 0:00:04]} d5 {[%emt 0:00:07]} 3. exd5 {[%emt 0:00:10]} cxd5 {[%emt 0:00:06]} 4. Nc3 {[%emt 0:00:10]} Nf6 {[%emt 0:03:19]} 5. Bf4 {[%emt 0:00:23]} a6 {[%emt 0:06:40]} 6. Nf3 {[%emt 0:00:19] B13: Caro-Kann: Exchange Variation and Panov-Botvinnik Attack.} Nc6 {[%emt 0:02:10]} 7. Ne5 {[%emt 0:00:35]} g6 {[%emt 0:01:59]} 8. Nxc6 {[%emt 0:07:23] White is slightly better.} bxc6 {[%emt 0:00:03] [#] Black is weak on the dark squares} 9. Na4 $146 {[%emt 0:01:01]} ({Predecessor:} 9. Bd3 Bg7 10. O-O O-O 11. Na4 Nd7 12. c3 e5 13. dxe5 Nxe5 14. Be2 a5 15. Nc5 {½-½ Agrest,E (2568)-Chen,Q (2485) Titled Tuesday intern op 15 Mar Early blitz 2022 (3)}) 9... Bg7 {[%emt 0:01:42]} 10. Be5 {[%emt 0:06:18]} O-O {[%emt 0:02:22]} 11. Bd3 {[%emt 0:02:26]} Nd7 {[%emt 0:02:17]} 12. Bxg7 {[%emt 0:00:14]} Kxg7 {[%emt 0:00:04]} 13. O-O {[%emt 0:08:53]} e5 {[%emt 0:03:32]} 14. dxe5 {[%emt 0:00:42]} Nxe5 {[%emt 0:01:39]} 15. Be2 {[%emt 0:02:09]} Re8 {[%emt 0:08:24]} 16. f4 {[%emt 0:10:23]} Nd7 {[%emt 0:00:21]} 17. c4 {[%emt 0:06:44]} Qf6 {[%emt 0:05:19]} 18. Kh1 {[%emt 0:07:31]} Rb8 {[%emt 0:02:06]} 19. Rc1 {[%emt 0:04:06]} Nb6 20. Nxb6 {[%emt 0:03:19]} Rxb6 {[%emt 0:04:17]} 21. b3 {[%emt 0:00:11]} Bf5 {[%emt 0:01:48]} 22. Qd2 {[%emt 0:03:58]} Rbb8 {[%emt 0:03:17]} 23. cxd5 {[%emt 0:07:17]} cxd5 {[%emt 0:00:12][%cal Bc6d5,Bd5d4,Bd4d3][%mdl 32]} 24. Bf3 {[%emt 0:03:46]} Be4 {[%emt 0:01:56]} 25. h3 {[%emt 0:01:57]} Rbc8 {[%emt 0:03:26]} 26. Bg4 {[%emt 0:03:34]} (26. Rxc8 $11 {remains equal.} Rxc8 27. Bxe4 dxe4 28. Re1) 26... Rxc1 $17 {[%emt 0:01:11]} 27. Rxc1 {[%emt 0:00:27]} h5 {[%emt 0:01:37]} 28. Bd1 {[%emt 0:02:47]} d4 {[%emt 0:01:58] Black is more active.} 29. b4 {[%emt 0:02:30]} Kh7 {[%emt 0:01:15]} 30. Bb3 {[%emt 0:00:30]} (30. Kh2 $17 {keeps fighting.}) 30... d3 $19 {[%emt 0:01:50]} 31. Re1 {[%emt 0:03:42]} Re7 {[%emt 0:03:23]} (31... Qd4 $19 32. Kh2 Kg7) 32. Kh2 {[%emt 0:02:43] [#]} (32. b5 $17 {might work better.}) 32... Qd4 $1 {[%emt 0:01:39]} 33. g4 $2 {[%emt 0:02:12]} (33. Kg3) 33... h4 {[%emt 0:02:01][%cal Og6g5]} 34. Re3 {[%emt 0:02:00]} Rc7 {[%emt 0:00:49][%cal Be7c7,Bc7c4,Bc4b4,Bb4b1][%mdl 32] Threatens to win with ...Bb7.} 35. Bd1 {[%emt 0:00:39]} Kg7 {[%emt 0:01:21]} 36. a4 {[%emt 0:01:34]} (36. a3 $142) 36... Rc4 {[%emt 0:03:04]} 37. Kg1 {[%emt 0:02:18]} Rxb4 {[%emt 0:00:47] [#] Hoping for ...Rb1.} 38. Kf1 {[%emt 0:00:17]} Rb1 {[%emt 0:01:59][%cal Ob1d1] ( -> ...Rxd1+!)} 39. Re1 {[%emt 0:00:44]} Bc6 {[%emt 0:01:32]} 40. f5 {[%emt 0:00:09]} Rb2 {[%emt 0:01:28]} ({Not} 40... Bxa4 41. Bxa4 Rxe1+ 42. Qxe1 $17) 41. Qe3 {[%emt 0:00:24]} Qxe3 {[%emt 0:00:34]} 42. Rxe3 {[%emt 0:00:05]} Rb1 {[%emt 0:00:01][%csl LRa4,LRd1]} 43. f6+ {[%emt 0:01:28]} Kxf6 {[%emt 0:00:46]} 44. Rxd3 {[%emt 0:00:05]} Bxa4 {[%emt 0:00:06]} 45. Rd6+ {[%emt 0:00:05]} Ke5 {[%emt 0:00:21]} 46. Rxa6 {[%emt 0:00:45]} Bb5+ {[%emt 0:00:03] Weighted Error Value: White=0.74/Black=0.26 (precise)} 0-1

[Event "Ramat Gan Masters-A Winter 2023"]
[Site "Ramat Gan/ISR"]
[Date "2023.02.13"]
[Round "4.4"]
[White "Sobel, Ido"]
[Black "Noy, Eyal"]
[Result "0-1"]
[Annotator "TA"]
[ECO "B23"]
[WhiteElo "1871"]
[BlackElo "2117"]
[PlyCount "122"]
[EventDate "2023.01.17"]
[EventType "swiss"]
[SourceTitle "playchess.com"]
[Source "ChessBase"]
[SourceQuality "1"]
[TimeControl "5400+30"]

{[%evp 11,122,-6,-12,-32,-4,-139,-66,-75,-75,-69,-73,-73,-54,-69,-30,-23,-19,-25,-27,-38,-14,-29,-27,-21,0,-22,-22,-37,-46,-86,-74,-89,-84,-145,-120,-127,-104,-316,-327,-653,-659,-643,-512,-504,-501,-500,-497,-489,-421,-416,-418,-386,-396,-435,-443,-415,-383,-409,-404,-460,-451,-455,-442,-522,-438,-466,-460,-582,-503,-466,-348,-487,-491,-487,-497,-467,-347,-516,-488,-563,-549,-468,-352,-399,-366,-369,-344,-342,-336,-584,-572,-548,-537,-527,-502,-682,-692,-647,-604,-634,-585,-577,-404,-726,-720,-693,-683,-803,-799,-732,-750,-1298,-1257]} 1. e4 {[%emt 0:11:50]} c5 {[%emt 0:01:43]} 2. Nc3 {[%emt 0:00:02]} Nc6 {[%emt 0:00:10]} 3. f4 {[%emt 0:00:05]} g6 {[%emt 0:02:40]} 4. Nf3 {[%emt 0:00:02]} Bg7 {[%emt 0:00:09]} 5. Bb5 {[%emt 0:00:03]} Nd4 {[%emt 0:00:08]} 6. O-O {[%emt 0:00:03]} e6 {[%emt 0:01:57]} 7. d3 {[%emt 0:00:15] B23: Closed Sicilian: Lines without g3.} Ne7 {[%emt 0:03:50]} (7... a6 $5 {[%cal Rd4b5]} 8. Bc4 b5 $11) 8. Rb1 {[%emt 0:18:32] [#]} (8. e5 $11 {remains equal.}) 8... a6 $146 {[%emt 0:06:40]} (8... Qb6 $1 $17 9. a4 a6) ({Predecessor:} 8... O-O 9. Be3 a6 10. Ba4 d5 11. Bxd4 cxd4 12. Ne2 b5 13. Bb3 dxe4 14. dxe4 Bb7 {0-1 Bagaglia,R (1773)-Seletsky,G (2297) Florence op 6th 2012 (1)}) 9. Ba4 $15 {[%emt 0:01:27] Black is slightly better.} b5 {[%emt 0:01:13]} 10. Bb3 {[%emt 0:00:18]} d5 {[%emt 0:00:54]} 11. a3 {[%emt 0:05:02]} Nxb3 {[%emt 0:05:01]} 12. cxb3 {[%emt 0:00:02]} d4 {[%emt 0:00:09]} 13. Ne2 {[%emt 0:00:09]} O-O {[%emt 0:01:04]} 14. Bd2 {[%emt 0:01:31]} Bb7 {[%emt 0:01:46]} 15. Qe1 {[%emt 0:01:10]} c4 {[%emt 0:01:40]} 16. bxc4 {[%emt 0:06:56]} bxc4 {[%emt 0:00:15]} 17. Nc1 {[%emt 0:04:49]} Qb6 {[%emt 0:05:00] Strongly threatening ...c3.} 18. Bb4 {[%emt 0:02:58]} Rfe8 {[%emt 0:00:29]} 19. Bxe7 {[%emt 0:00:02]} (19. Ne5 {looks sharper.} cxd3 20. Ncxd3 Nc6 21. Bc5) 19... Rxe7 {[%emt 0:00:16]} 20. Nd2 {[%emt 0:45:14]} cxd3 {[%emt 0:00:37] Black has more active pieces.} 21. Nxd3 {[%emt 0:00:00]} a5 {[%emt 0:01:59]} 22. Rc1 {[%emt 0:00:00]} (22. e5 $142) 22... Ba6 $17 {[%emt 0:02:35]} 23. Qg3 {[%emt 0:00:00]} e5 {[%emt 0:04:26]} 24. fxe5 $2 {[%emt 0:00:00] [#] This costs White the game.} (24. Nc4 $17 Bxc4 25. Rxc4) 24... Bh6 $1 $19 {[%emt 0:00:26]} 25. Rc2 $2 {[%emt 0:00:00]} (25. Rfd1 Be3+ 26. Nf2) 25... Be3+ {[%emt 0:00:36] This pair of bishops is nice.} 26. Nf2 {[%emt 0:00:00]} Bxf1 {[%emt 0:01:19]} 27. Nxf1 {[%emt 0:00:00]} d3 {[%emt 0:02:43] Inhibits Re2.} 28. Rc3 {[%emt 0:00:00]} Qxb2 {[%emt 0:00:46]} 29. Rxd3 {[%emt 0:00:00]} Bxf2+ {[%emt 0:00:18]} 30. Qxf2 {[%emt 0:00:00]} Qxf2+ {[%emt 0:00:08]} (30... Qxe5 $2 {loses.} 31. Nd2 $19) 31. Kxf2 {[%emt 0:00:00]} Rxe5 {[%emt 0:00:12][%mdl 4096] Endgame KRR-KRN} 32. Rd4 {[%emt 0:00:00]} Rc8 {[%emt 0:01:41]} 33. Ne3 {[%emt 0:00:00]} Rce8 {[%emt 0:00:10]} 34. Ng4 {[%emt 0:00:00]} R5e6 {[%emt 0:00:01]} ({Much less strong is} 34... Rxe4 35. Rxe4 Rc8 36. Ne3 $18) 35. Kf3 {[%emt 0:00:00]} Kg7 {[%emt 0:01:02]} 36. Ra4 {[%emt 0:00:00]} h5 {[%emt 0:00:24]} 37. Nf2 {[%emt 0:00:00]} Re5 {[%emt 0:02:44]} 38. h3 {[%emt 0:02:01]} f5 {[%emt 0:00:22]} 39. g4 {[%emt 0:00:51]} fxe4+ {[%emt 0:02:11]} 40. Nxe4 {[%emt 0:00:04]} Rb8 {[%emt 0:01:02]} 41. h4 {[%emt 0:04:23]} hxg4+ {[%emt 0:01:53]} 42. Kxg4 {[%emt 0:00:02]} Rd8 {[%emt 0:00:39] Prevents Rd4} 43. Ng5 {[%emt 0:00:40]} Rc8 {[%emt 0:01:01] ...Rc1 would be deadly.} 44. Ne4 {[%emt 0:00:20]} (44. Rd4 {keeps fighting.}) 44... Rd5 {[%emt 0:00:25]} 45. Ng5 {[%emt 0:00:49]} Rc3 {[%emt 0:01:23]} 46. Ne6+ {[%emt 0:01:16]} Kf6 {[%emt 0:00:10]} 47. Ng5 {[%emt 0:01:03] aiming for Ne4+.} Rb3 {[%emt 0:00:48]} 48. Rf4+ {[%emt 0:01:07]} Rf5 {[%emt 0:00:50]} 49. Ra4 {[%emt 0:00:01]} Rb1 {[%emt 0:00:50]} 50. Ne4+ $2 {[%emt 0:00:24]} (50. Rc4 Rg1+ 51. Kh3) 50... Kg7 {[%emt 0:01:22]} 51. Ng3 {[%emt 0:00:10]} Rg1 {[%emt 0:00:28]} 52. Rc4 {[%emt 0:00:59]} Rb5 {[%emt 0:00:20] Hoping for ...Rb3.} 53. Rc3 {[%emt 0:00:54] Repels Rb3} a4 {[%emt 0:00:27] ...Rb3 is the strong threat.} 54. Kf4 {[%emt 0:01:13]} Rb3 {[%emt 0:00:06]} 55. Rc7+ {[%emt 0:00:05]} Kh6 {[%emt 0:01:23]} 56. Ne4 {[%emt 0:00:10]} Rh3 {[%emt 0:00:14]} ({And not} 56... Rxa3 57. Ng5 Rf1+ 58. Kg4 Rg1+ 59. Kf4 Rf1+ 60. Kg4 Rg1+ 61. Kf4 $11) 57. Nf6 {[%emt 0:01:21]} (57. Ra7 $142) 57... Rxh4+ {[%emt 0:00:23] Black is clearly winning.} 58. Ke5 {[%emt 0:00:02]} Re1+ {[%emt 0:00:12]} 59. Kd5 {[%emt 0:00:36]} Rf4 {[%emt 0:00:36]} 60. Ng8+ {[%emt 0:00:19]} Kg5 {[%emt 0:00:04]} 61. Ne7 {[%emt 0:00:20]} Rf7 {[%emt 0:00:11] Weighted Error Value: White=0.65/Black=0.26 (precise)} 0-1

[Event "Ramat Gan Masters-A Winter 2023"]
[Site "Ramat Gan/ISR"]
[Date "2023.02.13"]
[Round "4.6"]
[White "Gurevich, Neria"]
[Black "Meirovich, Ilay"]
[Result "1-0"]
[Annotator "TA"]
[ECO "E11"]
[WhiteElo "1543"]
[BlackElo "1979"]
[PlyCount "63"]
[EventDate "2023.01.17"]
[EventType "swiss"]
[SourceTitle "playchess.com"]
[Source "ChessBase"]
[SourceQuality "1"]
[TimeControl "5400+30"]

{[%evp 13,63,30,35,15,18,6,40,45,34,6,31,24,36,0,23,0,19,31,21,28,37,31,60,55,145,139,133,170,180,195,160,72,105,77,760,744,895,906,883,875,29986,29987,29987,29988,29993,29994,29994,29995,29997,29998,29998,29997]} 1. d4 {[%emt 0:00:04]} Nf6 {[%emt 0:00:32]} 2. c4 {[%emt 0:00:09]} e6 {[%emt 0:00:06]} 3. Nf3 {[%emt 0:00:10]} Bb4+ {[%emt 0:00:09]} 4. Bd2 {[%emt 0:00:12]} a5 {[%emt 0:00:07]} 5. g3 {[%emt 0:00:22]} d6 {[%emt 0:00:07]} 6. Bg2 {[%emt 0:00:40]} Nbd7 {[%emt 0:00:08]} 7. O-O {[%emt 0:00:51]} e5 {[%emt 0:00:10]} 8. a3 {[%emt 0:01:54] E11: Bogo-Indian.} Bxd2 {[%emt 0:00:22]} 9. Nbxd2 {[%emt 0:00:09]} exd4 {[%emt 0:08:05]} 10. Nxd4 {[%emt 0:00:27] [#] White is slightly better.} O-O $146 {[%emt 0:00:04]} ({Predecessor:} 10... a4 11. Qc2 O-O 12. e4 Re8 13. f4 c6 14. Rae1 Nc5 15. Kh1 Bd7 16. Qc3 Qa5 {0-1 Kouvatsos,F (2186)-Hracek,Z (2618) Paleochora op 10th 2017 (2)}) 11. Rc1 {[%emt 0:04:44]} Ne5 {[%emt 0:07:05]} 12. Ne4 {[%emt 0:03:52]} c6 {[%emt 0:03:28]} 13. b4 {[%emt 0:06:14]} axb4 {[%emt 0:14:13] [#] And now ...Nxe4 would win.} 14. axb4 {[%emt 0:00:56]} Re8 {[%emt 0:00:12]} 15. Nxf6+ {[%emt 0:02:15]} Qxf6 {[%emt 0:00:28]} 16. b5 {[%emt 0:01:08][%cal Rb5c6]} c5 {[%emt 0:03:09]} 17. Nf3 {[%emt 0:01:12]} Ra2 {[%emt 0:01:20]} 18. Nd2 {[%emt 0:02:51]} Bf5 {[%emt 0:19:48]} (18... Qh6 $14 19. Nf3 Nd7) 19. Bxb7 $16 {[%emt 0:03:22][%cal Bg2b7,Bb7f3,Bf3g4][%mdl 32]} Ng4 {[%emt 0:07:48]} 20. h3 {[%emt 0:01:53]} Qh6 {[%emt 0:14:20]} 21. hxg4 {[%emt 0:04:09]} Rxd2 {[%emt 0:00:03]} 22. Qb3 {[%emt 0:00:50]} (22. gxf5 $142 Rxd1 23. Rfxd1) 22... Bxg4 {[%emt 0:00:34]} 23. Bf3 {[%emt 0:00:33]} Rdxe2 $2 {[%emt 0:14:21][%mdl 8192] [#] Loses the game.} (23... Bxf3 $16 24. Qxf3 (24. exf3 Rxf2 25. Rxf2 Qxc1+ 26. Rf1 Qh6 $15) 24... Qe6) 24. Bxg4 $18 {[%emt 0:00:36]} Rxf2 {[%emt 0:00:17]} 25. Rxf2 {[%emt 0:00:47]} (25. Kxf2 {gets mated.} Qh2+ 26. Kf3 Qe2+ 27. Kf4 Re4+ 28. Kg5 Qxg4#) 25... Qxc1+ {[%emt 0:00:04]} 26. Kg2 {[%emt 0:00:12]} Re1 {[%emt 0:01:31]} 27. Qf3 {[%emt 0:00:27] White mates.} Rg1+ {[%emt 0:02:57]} 28. Kh2 {[%emt 0:00:10][%cal Rf3a8]} f6 {[%emt 0:00:16]} 29. Qd5+ {[%emt 0:00:33]} Kf8 {[%emt 0:00:03]} 30. Qxd6+ {[%emt 0:00:21]} Kf7 {[%emt 0:00:08]} 31. Bh5+ {[%emt 0:00:10]} g6 {[%emt 0:00:26]} 32. Qxf6+ {[%emt 0:00:06] Artfully played by Gurevich.   Weighted Error Value: White=0.11 (very precise) /Black=0.44} 1-0